[Event "Azerbaijan-ch 1st League 2025"]
[Site "Baku"]
[Date "2025.01.11"]
[Round "6.11"]
[White "Salimov, Shovkat"]
[Black "Musayev, Eldar"]
[Result "1-0"]
[Annotator "RC"]
[ECO "A18"]
[WhiteElo "1977"]
[BlackElo "2163"]
[PlyCount "107"]
[EventDate "2025.01.05"]
[EventType "swiss"]
[EventCountry "AZE"]
[SourceTitle "playchess.com"]
[Source "ChessBase"]
[SourceQuality "1"]
[TimeControl "40/5400+30:1800+30"]

1. c4 {[%emt 0:00:33]} Nf6 {[%emt 0:01:01]} 2. Nc3 {[%emt 0:00:06]} e6 {[%emt 0:00:08]} 3. e4 {[%emt 0:00:49]} d5 {[%emt 0:00:10]} 4. cxd5 {[%emt 0:00:14]} exd5 {[%emt 0:00:02]} 5. e5 {[%emt 0:00:06]} d4 {[%emt 0:00:24]} 6. exf6 {[%emt 0:03:59]} dxc3 {[%emt 0:00:01]} 7. fxg7 {[%emt 0:10:14]} cxd2+ {[%emt 0:00:08]} 8. Bxd2 {[%emt 0:00:57]} Bxg7 {[%emt 0:00:09]} 9. Nf3 {[%emt 0:11:09]} Be6 {[%emt 0:04:27]} 10. Qc2 {[%emt 0:01:34]} Qe7 {[%emt 0:04:46]} 11. Be2 {[%emt 0:01:13]} Nc6 {[%emt 0:00:32]} 12. O-O {[%emt 0:00:51]} O-O-O {[%emt 0:05:57]} 13. Rfe1 {[%emt 0:05:54]} Nd4 {[%emt 0:03:09]} 14. Nxd4 {[%emt 0:01:03]} Bxd4 {[%emt 0:00:05]} 15. Rac1 {[%emt 0:14:23]} Qd6 {[%emt 0:26:52]} 16. Bc3 {[%emt 0:21:32]} Qb6 {[%emt 0:02:42]} 17. Bf3 {[%emt 0:08:21]} Bxc3 {[%emt 0:15:31]} 18. Qxc3 {[%emt 0:00:28]} Rd4 {[%emt 0:00:25]} 19. b3 {[%emt 0:04:28]} Rhd8 {[%emt 0:00:56]} 20. Rc2 {[%emt 0:01:58]} a5 {[%emt 0:02:07]} 21. Qe3 {[%emt 0:01:19]} Qd6 {[%emt 0:19:08]} 22. h3 {[%emt 0:01:02]} Kb8 {[%emt 0:03:14]} 23. Rec1 {[%emt 0:00:37]} Rd7 {[%emt 0:01:24]} 24. Qg5 {[%emt 0:01:58]} Bd5 {[%emt 0:02:50]} 25. Bxd5 {[%emt 0:03:32]} Rxd5 {[%emt 0:00:02]} 26. Qg8+ {[%emt 0:01:07]} Ka7 {[%emt 0:00:06]} 27. Qxh7 {[%emt 0:00:38]} f5 {[%emt 0:01:02]} 28. Qh5 {[%emt 0:00:01]} f4 {[%emt 0:00:09]} 29. Qe2 {[%emt 0:00:45]} Re7 {[%emt 0:01:02]} 30. Qg4 {[%emt 0:02:11]} a4 {[%emt 0:06:12]} 31. bxa4 {[%emt 0:01:39]} Rd4 {[%emt 0:00:40]} 32. a5 {[%emt 0:00:56]} Rde4 {[%emt 0:00:29]} 33. Qf3 {[%emt 0:00:35]} Rd4 {[%emt 0:00:18]} 34. Rc3 {[%emt 0:00:17]} Ra4 {[%emt 0:00:17]} 35. Rd1 {[%emt 0:00:56]} Qe5 {[%emt 0:00:33]} 36. Rb3 {[%emt 0:00:20]} c6 {[%emt 0:00:01]} 37. Ra3 {[%emt 0:00:24]} Qxa5 {[%emt 0:01:05]} 38. Rdd3 {[%emt 0:00:31]} Qe1+ {[%emt 0:00:50]} 39. Kh2 {[%emt 0:00:03]} Ree4 {[%emt 0:00:02]} 40. Rdb3 {[%emt 0:00:00]} Qa5 {[%emt 0:00:00]} 41. Qxe4 {[%emt 0:08:16]} Rxa3 {[%emt 0:01:05]} 42. Rxa3 {[%emt 0:04:16]} Qxa3 {[%emt 0:00:02]} 43. Qxf4 {[%emt 0:00:27]} Qxa2 {[%emt 0:01:01]} 44. h4 {[%emt 0:00:03]} Qa5 {[%emt 0:02:59]} 45. g4 {[%emt 0:00:26]} c5 {[%emt 0:00:15]} 46. h5 {[%emt 0:00:38]} Qb4 {[%emt 0:00:17]} 47. Qf5 {[%emt 0:07:15]} c4 {[%emt 0:01:07]} 48. Qf4 {[%emt 0:00:54]} Qc5 {[%emt 0:01:24]} 49. h6 {[%emt 0:00:37]} Qe7 {[%emt 0:04:04]} 50. g5 {[%emt 0:01:11]} c3 {[%emt 0:00:30]} 51. Qd4+ {[%emt 0:03:02]} Ka6 {[%emt 0:01:54]} 52. Qc4+ {[%emt 0:00:26]} b5 {[%emt 0:01:49]} 53. Qc6+ {[%emt 0:00:05]} Ka7 {[%emt 0:00:04]} 54. Qxc3 {[%emt 0:00:17]} 1-0

[Event "Azerbaijan-ch 1st League 2025"]
[Site "Baku"]
[Date "2025.01.11"]
[Round "6.12"]
[White "Huseynov, Ahmed"]
[Black "Rzayev, Chingiz"]
[Result "0-1"]
[Annotator "RC"]
[ECO "A43"]
[WhiteElo "1996"]
[BlackElo "2153"]
[PlyCount "148"]
[EventDate "2025.01.05"]
[EventType "swiss"]
[EventCountry "AZE"]
[SourceTitle "playchess.com"]
[Source "ChessBase"]
[SourceQuality "1"]
[TimeControl "40/5400+30:1800+30"]

1. d4 {[%emt 0:00:03]} c5 {[%emt 0:00:09]} 2. d5 {[%emt 0:00:06]} d6 {[%emt 0:00:12]} 3. e4 {[%emt 0:01:00]} g6 {[%emt 0:00:18]} 4. Nf3 {[%emt 0:00:40]} Bg7 {[%emt 0:00:06]} 5. Be2 {[%emt 0:01:14]} Nf6 {[%emt 0:00:11]} 6. Nc3 {[%emt 0:00:06]} O-O {[%emt 0:00:07]} 7. O-O {[%emt 0:00:32]} Nbd7 {[%emt 0:05:13]} 8. h3 {[%emt 0:00:22]} a6 {[%emt 0:00:18]} 9. a4 {[%emt 0:00:14]} b6 {[%emt 0:00:20]} 10. Be3 {[%emt 0:04:21]} Bb7 {[%emt 0:00:10]} 11. Bc4 {[%emt 0:06:10]} Re8 {[%emt 0:02:39]} 12. Qd2 {[%emt 0:04:35]} Qc7 {[%emt 0:00:37]} 13. Rad1 {[%emt 0:01:17]} Nf8 {[%emt 0:12:07]} 14. Bf4 {[%emt 0:07:32]} N6d7 {[%emt 0:00:33]} 15. Bh2 {[%emt 0:07:11]} Rad8 {[%emt 0:00:46]} 16. Qd3 {[%emt 0:02:59]} Qc8 {[%emt 0:00:10]} 17. Rfe1 {[%emt 0:02:09]} Ne5 {[%emt 0:00:44]} 18. Nxe5 {[%emt 0:00:46]} dxe5 {[%emt 0:00:22]} 19. Qe2 {[%emt 0:14:41]} Rd6 {[%emt 0:01:49]} 20. Na2 {[%emt 0:06:51]} Red8 {[%emt 0:01:21]} 21. Nc3 {[%emt 0:06:31]} g5 {[%emt 0:00:46]} 22. Qh5 {[%emt 0:03:40]} h6 {[%emt 0:02:04]} 23. Rd3 {[%emt 0:07:24]} Ng6 {[%emt 0:02:40]} 24. g3 {[%emt 0:09:19]} Qd7 {[%emt 0:00:35]} 25. Rf3 {[%emt 0:01:16]} Bc8 {[%emt 0:00:25]} 26. Kg2 {[%emt 0:00:50]} Qe8 {[%emt 0:00:29]} 27. Kh1 {[%emt 0:06:33]} Kh7 {[%emt 0:04:30]} 28. Rfe3 {[%emt 0:03:58]} Qd7 {[%emt 0:07:01]} 29. Bf1 {[%emt 0:00:32]} e6 {[%emt 0:01:08]} 30. Qf3 {[%emt 0:02:02]} Bb7 {[%emt 0:00:26]} 31. Bc4 {[%emt 0:00:31]} exd5 {[%emt 0:00:55]} 32. Bxd5 {[%emt 0:00:06]} Bxd5 {[%emt 0:00:35]} 33. Nxd5 {[%emt 0:00:07]} Qxh3 {[%emt 0:00:28]} 34. Qe2 {[%emt 0:00:39]} Qc8 {[%emt 0:01:03]} 35. Rb3 {[%emt 0:00:20]} f5 {[%emt 0:04:54]} 36. Nxb6 {[%emt 0:00:50]} Qc6 {[%emt 0:00:21]} 37. Nd5 {[%emt 0:00:18]} c4 {[%emt 0:01:32]} 38. Rb6 {[%emt 0:00:13]} Qc5 {[%emt 0:00:43]} 39. Rxd6 {[%emt 0:00:09]} Rxd6 {[%emt 0:00:20]} 40. Ne3 {[%emt 0:00:00]} f4 {[%emt 0:00:00]} 41. Nxc4 {[%emt 0:03:18]} f3 {[%emt 0:03:08]} 42. Qf1 {[%emt 0:01:41]} Rd4 {[%emt 0:00:01]} 43. b3 {[%emt 0:00:45]} Qc6 {[%emt 0:00:22]} 44. c3 {[%emt 0:06:04]} Rxe4 {[%emt 0:00:38]} 45. Rxe4 {[%emt 0:00:06]} Qxe4 {[%emt 0:00:03]} 46. Ne3 {[%emt 0:00:30]} a5 {[%emt 0:01:13]} 47. Qc4 {[%emt 0:03:24]} Qxc4 {[%emt 0:03:22]} 48. Nxc4 {[%emt 0:03:24]} g4 {[%emt 0:00:05]} 49. Nxa5 {[%emt 0:12:12]} e4 {[%emt 0:00:12]} 50. c4 {[%emt 0:00:10]} Bd4 {[%emt 0:00:03]} 51. Kg1 {[%emt 0:00:19]} Ne5 {[%emt 0:00:03]} 52. Kf1 {[%emt 0:00:08]} h5 {[%emt 0:01:05]} 53. Nb7 {[%emt 0:05:02]} Nd3 {[%emt 0:00:53]} 54. Nd6 {[%emt 0:01:19]} Kg6 {[%emt 0:12:31]} 55. Bg1 {[%emt 0:00:54]} e3 {[%emt 0:04:29]} 56. fxe3 {[%emt 0:00:04]} Be5 {[%emt 0:00:03]} 57. Ne4 {[%emt 0:00:38]} Kf5 {[%emt 0:00:04]} 58. Nf2 {[%emt 0:00:06]} Nc1 {[%emt 0:00:24]} 59. e4+ {[%emt 0:00:44]} Ke6 {[%emt 0:00:12]} 60. Bh2 {[%emt 0:01:02]} Nxb3 {[%emt 0:01:25]} 61. Nd3 {[%emt 0:00:19]} Nd2+ {[%emt 0:00:27]} 62. Ke1 {[%emt 0:00:32]} Bc3 {[%emt 0:00:31]} 63. Nf4+ {[%emt 0:00:38]} Ke5 {[%emt 0:00:05]} 64. Nxh5 {[%emt 0:00:27]} Nxc4+ {[%emt 0:00:34]} 65. Kf1 {[%emt 0:00:24]} Nd2+ {[%emt 0:00:09]} 66. Ke1 {[%emt 0:00:15]} Nc4+ {[%emt 0:03:08]} 67. Kf1 {[%emt 0:00:15]} Ne3+ {[%emt 0:00:30]} 68. Kf2 {[%emt 0:00:25]} Bd4 {[%emt 0:00:14]} 69. Nf4 {[%emt 0:01:10]} Nc4+ {[%emt 0:00:36]} 70. Ke1 {[%emt 0:00:24]} Kxe4 {[%emt 0:00:10]} 71. Ne6 {[%emt 0:00:43]} Be3 {[%emt 0:00:10]} 72. a5 {[%emt 0:00:26]} f2+ {[%emt 0:01:33]} 73. Ke2 {[%emt 0:00:06]} Nd2 {[%emt 0:00:03]} 74. Ng5+ {[%emt 0:00:20]} Kd5 {[%emt 0:00:16]} 0-1

[Event "Azerbaijan-ch 1st League 2025"]
[Site "Baku"]
[Date "2025.01.11"]
[Round "6.13"]
[White "Alizada, Agshin"]
[Black "Allajov, Ramil"]
[Result "0-1"]
[Annotator "NA RC"]
[ECO "A48"]
[WhiteElo "2116"]
[BlackElo "2079"]
[PlyCount "158"]
[EventDate "2025.01.05"]
[EventType "swiss"]
[EventCountry "AZE"]
[SourceTitle "playchess.com"]
[Source "ChessBase"]
[SourceQuality "1"]
[TimeControl "40/5400+30:1800+30"]

1. d4 {[%emt 0:02:36]} Nf6 {[%emt 0:00:39]} 2. Nf3 {[%emt 0:00:07]} g6 {[%emt 0:00:06]} 3. Bf4 {[%emt 0:00:24]} d6 {[%emt 0:00:06]} 4. Nc3 {[%emt 0:00:05]} Bg7 {[%emt 0:02:10]} 5. Qd2 {[%emt 0:00:06]} Nbd7 {[%emt 0:01:47]} 6. Bh6 {[%emt 0:01:09]} Bxh6 {[%emt 0:02:54]} 7. Qxh6 {[%emt 0:00:05]} c5 {[%emt 0:00:03]} 8. O-O-O {[%emt 0:03:13]} a6 {[%emt 0:02:13]} 9. e4 {[%emt 0:05:05]} cxd4 {[%emt 0:02:00]} 10. Rxd4 {[%emt 0:02:52]} b5 {[%emt 0:05:07]} 11. Nd5 {[%emt 0:10:48]} Qa5 {[%emt 0:05:46]} (11... e5 $1 $11 12. Nxf6+ Qxf6) 12. a3 $14 {[%emt 0:11:02]} Bb7 {[%emt 0:00:25]} 13. Bd3 {[%emt 0:12:05]} Bxd5 {[%emt 0:06:01]} 14. exd5 {[%emt 0:00:20]} Ne5 {[%emt 0:00:04]} 15. Kb1 {[%emt 0:14:58]} Qb6 {[%emt 0:05:15]} 16. c3 {[%emt 0:06:52]} Qc5 {[%emt 0:12:25]} 17. Re1 {[%emt 0:01:47]} Nxf3 {[%emt 0:04:40]} 18. gxf3 {[%emt 0:00:05]} Rg8 {[%emt 0:02:44]} 19. Qg5 {[%emt 0:07:37]} Kd8 {[%emt 0:02:35]} 20. Bc2 {[%emt 0:06:32]} Ra7 {[%emt 0:00:35]} 21. Bb3 {[%emt 0:02:46]} Qc8 {[%emt 0:04:09]} 22. c4 {[%emt 0:02:00]} Qf5+ {[%emt 0:17:22]} 23. Qxf5 {[%emt 0:00:14]} gxf5 {[%emt 0:00:01]} 24. cxb5 {[%emt 0:03:20]} axb5 {[%emt 0:00:12]} 25. Rb4 {[%emt 0:00:05]} Ra5 {[%emt 0:01:44]} 26. Rf4 {[%emt 0:00:48]} Rg2 {[%emt 0:02:48]} 27. h4 {[%emt 0:01:41]} Rxf2 {[%emt 0:02:25]} 28. Rxf5 {[%emt 0:00:04]} Ra7 {[%emt 0:01:05]} 29. Rf4 {[%emt 0:03:49]} Rc7 {[%emt 0:00:39]} 30. Rd1 {[%emt 0:02:06]} Rc5 {[%emt 0:00:19]} 31. Ka2 {[%emt 0:00:24]} h6 {[%emt 0:01:37]} 32. Rd3 {[%emt 0:00:43]} Rc1 {[%emt 0:00:25]} 33. a4 {[%emt 0:00:22]} Rff1 {[%emt 0:01:37]} 34. Ka3 {[%emt 0:00:15]} bxa4 {[%emt 0:04:12]} 35. Bxa4 {[%emt 0:00:16]} Rc5 {[%emt 0:00:30]} 36. Bb3 {[%emt 0:00:28]} Ra1+ {[%emt 0:00:58]} 37. Kb4 {[%emt 0:00:07]} Ra7 {[%emt 0:01:46]} 38. Bc4 {[%emt 0:00:46]} Nd7 {[%emt 0:01:11]} 39. b3 {[%emt 0:01:19]} Ne5 {[%emt 0:01:40]} 40. Re3 {[%emt 0:00:00]} Rb7+ {[%emt 0:00:00]} 41. Kc3 {[%emt 0:01:05]} Rbc7 {[%emt 0:04:57]} 42. Rd4 {[%emt 0:01:57]} Ke8 {[%emt 0:04:22]} 43. f4 {[%emt 0:02:42]} Nxc4 {[%emt 0:00:34]} 44. Rxc4 {[%emt 0:04:51]} Rxc4+ {[%emt 0:02:10]} 45. bxc4 {[%emt 0:00:05]} Kf8 {[%emt 0:00:01]} 46. Rg3 {[%emt 0:00:46]} Ra7 {[%emt 0:00:18]} 47. Kd4 {[%emt 0:00:27]} Ra1 {[%emt 0:00:06]} 48. f5 {[%emt 0:02:44]} Rh1 {[%emt 0:01:06]} 49. Rg4 {[%emt 0:00:03]} h5 {[%emt 0:00:04]} 50. Re4 {[%emt 0:00:05]} Rf1 {[%emt 0:00:26]} 51. f6 {[%emt 0:01:21]} exf6 {[%emt 0:00:53]} 52. Ke3 {[%emt 0:07:00]} Re1+ {[%emt 0:08:07]} 53. Kd3 {[%emt 0:00:39]} Rh1 {[%emt 0:00:27]} 54. Kd2 {[%emt 0:03:06]} f5 {[%emt 0:06:21]} 55. Rf4 {[%emt 0:00:24]} Ke7 {[%emt 0:00:03]} 56. Rxf5 {[%emt 0:01:16]} Rxh4 {[%emt 0:00:14]} 57. Kc3 {[%emt 0:00:09]} Rh1 {[%emt 0:00:30]} 58. Kb4 {[%emt 0:05:06]} h4 {[%emt 0:00:06]} 59. Kb5 {[%emt 0:00:05]} h3 {[%emt 0:00:07]} 60. Rf2 {[%emt 0:00:26]} Rc1 {[%emt 0:03:14]} 61. Rh2 {[%emt 0:01:33]} Rc3 {[%emt 0:00:21]} 62. Re2+ {[%emt 0:00:06]} Kf6 {[%emt 0:01:36]} 63. Rf2+ {[%emt 0:06:09]} Kg6 {[%emt 0:00:06]} 64. Kc6 {[%emt 0:00:16]} Rxc4+ {[%emt 0:00:05]} 65. Kxd6 {[%emt 0:00:03]} Rh4 {[%emt 0:00:16]} 66. Rh2 {[%emt 0:00:28]} f5 {[%emt 0:00:32]} 67. Ke5 {[%emt 0:01:13]} Re4+ {[%emt 0:04:25]} 68. Kd6 {[%emt 0:00:02]} Re3 {[%emt 0:00:04]} 69. Kc5 {[%emt 0:00:52]} Kg5 {[%emt 0:00:15]} 70. Rh1 {[%emt 0:00:37]} Kg4 {[%emt 0:01:22]} 71. d6 {[%emt 0:00:31]} f4 {[%emt 0:02:43]} 72. Rg1+ {[%emt 0:00:23]} Kf3 {[%emt 0:01:39]} 73. Rf1+ {[%emt 0:00:36]} Kg3 {[%emt 0:00:32]} 74. Kd4 {[%emt 0:00:32]} Re6 {[%emt 0:01:17]} 75. Kc5 {[%emt 0:00:28]} Re8 {[%emt 0:00:13]} 76. Rg1+ {[%emt 0:00:31]} Kf2 {[%emt 0:00:21]} 77. Rg6 {[%emt 0:00:28]} f3 {[%emt 0:02:13]} 78. Kd4 {[%emt 0:00:31]} Rh8 {[%emt 0:00:31]} 79. Ke4 {[%emt 0:00:32]} h2 {[%emt 0:00:10]} 0-1

[Event "Azerbaijan-ch 1st League 2025"]
[Site "Baku"]
[Date "2025.01.11"]
[Round "6.14"]
[White "Garakhanov, Shamsi"]
[Black "Baghirov, Mahammad"]
[Result "0-1"]
[Annotator "NA RC"]
[ECO "E05"]
[WhiteElo "2022"]
[BlackElo "1932"]
[PlyCount "80"]
[EventDate "2025.01.05"]
[EventType "swiss"]
[EventCountry "AZE"]
[SourceTitle "playchess.com"]
[Source "ChessBase"]
[SourceQuality "1"]
[TimeControl "40/5400+30:1800+30"]

1. d4 {[%emt 0:00:03]} Nf6 {[%emt 0:03:00]} 2. c4 {[%emt 0:00:06]} e6 {[%emt 0:00:23]} 3. g3 {[%emt 0:00:08]} d5 {[%emt 0:00:10]} 4. Bg2 {[%emt 0:00:04]} Be7 {[%emt 0:00:06]} 5. Nf3 {[%emt 0:00:05]} dxc4 {[%emt 0:00:07]} 6. O-O {[%emt 0:00:49]} O-O {[%emt 0:00:06]} 7. Qc2 {[%emt 0:04:38]} a6 {[%emt 0:01:10]} 8. a4 {[%emt 0:01:20]} Nc6 {[%emt 0:00:08]} 9. Qxc4 {[%emt 0:05:49]} Na5 {[%emt 0:00:15]} 10. Qc2 {[%emt 0:05:46]} b6 {[%emt 0:00:06]} 11. Nc3 {[%emt 0:08:33]} Bb7 {[%emt 0:01:05]} 12. e4 {[%emt 0:07:31]} Rc8 {[%emt 0:02:03]} 13. Rd1 {[%emt 0:03:40]} h6 {[%emt 0:01:47]} 14. h3 {[%emt 0:19:09]} (14. Bf4 $14) 14... Bb4 $11 {[%emt 0:00:19]} 15. Nh2 {[%emt 0:02:31]} Re8 {[%emt 0:03:04]} 16. Ng4 {[%emt 0:05:10]} Nxg4 {[%emt 0:00:15]} 17. hxg4 {[%emt 0:00:04]} Qe7 {[%emt 0:00:34]} 18. Na2 {[%emt 0:03:28]} c5 {[%emt 0:08:25]} 19. d5 {[%emt 0:06:42]} exd5 {[%emt 0:00:22]} 20. exd5 {[%emt 0:00:01]} Qe2 {[%emt 0:00:26]} 21. Qxe2 {[%emt 0:03:27]} Rxe2 {[%emt 0:00:02]} 22. Nxb4 {[%emt 0:04:17]} cxb4 {[%emt 0:00:44]} 23. d6 {[%emt 0:03:34]} Bxg2 {[%emt 0:00:09]} 24. Kxg2 {[%emt 0:00:01]} Rd8 {[%emt 0:01:44]} 25. d7 {[%emt 0:07:46]} Re7 {[%emt 0:00:28]} 26. Bf4 {[%emt 0:01:59]} Nb3 {[%emt 0:03:29]} 27. Rab1 {[%emt 0:00:14]} Rdxd7 {[%emt 0:00:13]} 28. Rxd7 {[%emt 0:00:03]} Rxd7 {[%emt 0:00:07]} 29. Re1 {[%emt 0:00:38]} Nc5 {[%emt 0:00:28]} 30. Re8+ {[%emt 0:00:04]} Kh7 {[%emt 1:14:15]} 31. Rb8 {[%emt 0:01:47]} Nxa4 {[%emt 0:00:00]} 32. b3 {[%emt 0:00:14]} Nc5 {[%emt 0:00:00]} 33. Rxb6 {[%emt 0:00:03]} a5 {[%emt 0:00:00]} 34. Rb5 {[%emt 0:03:21]} Nxb3 {[%emt 0:00:00]} 35. Be5 {[%emt 0:00:22]} f6 {[%emt 0:00:00]} 36. Bf4 {[%emt 0:00:17]} Ra7 {[%emt 0:00:00]} 37. Bb8 {[%emt 0:00:20]} Ra8 {[%emt 0:00:00]} 38. Bc7 {[%emt 0:00:07]} a4 {[%emt 0:00:00]} 39. Rxb4 {[%emt 0:00:14]} a3 {[%emt 0:00:00]} 40. Rxb3 {[%emt 0:00:00]} a2 {[%emt 0:00:00]} 0-1

[Event "Azerbaijan-ch 1st League 2025"]
[Site "Baku"]
[Date "2025.01.11"]
[Round "6.15"]
[White "Kazimzade, Mahammad"]
[Black "Azimov, Yasin"]
[Result "1/2-1/2"]
[Annotator "NA RC"]
[ECO "B33"]
[WhiteElo "1743"]
[BlackElo "1880"]
[PlyCount "106"]
[EventDate "2025.01.05"]
[EventType "swiss"]
[EventCountry "AZE"]
[SourceTitle "playchess.com"]
[Source "ChessBase"]
[SourceQuality "1"]
[TimeControl "40/5400+30:1800+30"]

1. e4 {[%emt 0:04:16]} c5 {[%emt 0:00:17]} 2. Nf3 {[%emt 0:00:13]} Nc6 {[%emt 0:00:40]} 3. d4 {[%emt 0:00:31]} cxd4 {[%emt 0:00:20]} 4. Nxd4 {[%emt 0:00:26]} Qb6 {[%emt 0:00:20]} 5. Nb3 {[%emt 0:00:43]} Nf6 {[%emt 0:00:55]} 6. Nc3 {[%emt 0:01:26]} e6 {[%emt 0:00:45]} 7. Qe2 {[%emt 0:01:34]} Bb4 {[%emt 0:01:35]} 8. Bd2 {[%emt 0:00:55]} O-O {[%emt 0:05:43]} 9. O-O-O {[%emt 0:01:03]} d5 {[%emt 0:14:34]} 10. exd5 $11 {[%emt 0:29:27]} exd5 {[%emt 0:07:06]} 11. Be3 {[%emt 0:08:35]} Qd8 {[%emt 0:00:41]} 12. Nb5 {[%emt 0:03:24]} Re8 {[%emt 0:09:35]} 13. h3 {[%emt 0:05:03]} a6 {[%emt 0:07:30]} 14. N5d4 {[%emt 0:00:43]} Qe7 {[%emt 0:06:09]} 15. Nxc6 {[%emt 0:11:32]} bxc6 {[%emt 0:00:03]} 16. Qf3 {[%emt 0:00:33]} Ne4 {[%emt 0:07:15]} 17. Bd3 {[%emt 0:05:03]} f5 {[%emt 0:08:15]} 18. g4 {[%emt 0:06:06]} Rf8 {[%emt 0:02:32]} 19. gxf5 {[%emt 0:00:36]} Bxf5 {[%emt 0:00:16]} 20. Qg2 {[%emt 0:01:59]} Bg6 {[%emt 0:04:49]} 21. Rdg1 {[%emt 0:03:50]} Bh5 {[%emt 0:07:07]} 22. Bd4 {[%emt 0:03:41]} g6 {[%emt 0:03:17]} 23. Bxe4 {[%emt 0:01:55]} dxe4 {[%emt 0:00:48]} 24. a3 {[%emt 0:01:27]} Bf3 {[%emt 0:00:33]} 25. Qf1 {[%emt 0:00:27]} Bd6 {[%emt 0:01:02]} 26. Qc4+ {[%emt 0:00:20]} Qf7 {[%emt 0:00:09]} 27. Qxc6 {[%emt 0:00:25]} Bf4+ {[%emt 0:00:25]} 28. Kb1 {[%emt 0:00:27]} Rfc8 {[%emt 0:00:59]} 29. Qb6 {[%emt 0:02:16]} Bxh1 {[%emt 0:01:57]} 30. Rxh1 {[%emt 0:00:08]} Re8 {[%emt 0:01:56]} 31. Re1 {[%emt 0:01:03]} Re6 {[%emt 0:00:43]} 32. Qa5 {[%emt 0:00:34]} Bc7 {[%emt 0:02:11]} 33. Qg5 {[%emt 0:01:35]} Rae8 {[%emt 0:01:21]} 34. Nc5 {[%emt 0:00:23]} R6e7 {[%emt 0:00:49]} 35. Bf6 {[%emt 0:00:33]} Re5 {[%emt 0:02:06]} 36. Bxe5 {[%emt 0:00:07]} Rxe5 {[%emt 0:00:02]} 37. Qe3 {[%emt 0:00:08]} Bb6 {[%emt 0:00:21]} 38. b4 {[%emt 0:00:15]} Bxc5 {[%emt 0:01:40]} 39. bxc5 {[%emt 0:00:04]} Qc4 {[%emt 0:00:43]} 40. Qb3 {[%emt 0:00:00]} Qxb3+ {[%emt 0:00:00]} 41. cxb3 {[%emt 0:00:43]} Rxc5 {[%emt 0:00:58]} 42. Rxe4 {[%emt 0:00:04]} Rf5 {[%emt 0:01:23]} 43. f4 {[%emt 0:00:09]} Kf7 {[%emt 0:00:27]} 44. Ra4 {[%emt 0:00:21]} a5 {[%emt 0:00:34]} 45. Kc2 {[%emt 0:00:38]} Ke6 {[%emt 0:00:19]} 46. Kd3 {[%emt 0:00:43]} Kd6 {[%emt 0:00:34]} 47. Ke4 {[%emt 0:00:19]} Rh5 {[%emt 0:01:31]} 48. h4 {[%emt 0:00:20]} Kc6 {[%emt 0:00:23]} 49. b4 {[%emt 0:05:08]} axb4 {[%emt 0:00:13]} 50. Rxb4 {[%emt 0:00:04]} Rxh4 {[%emt 0:00:16]} 51. Ke5 {[%emt 0:00:14]} Rh5+ {[%emt 0:00:36]} 52. Kf6 {[%emt 0:00:15]} Rf5+ {[%emt 0:00:17]} 53. Kg7 {[%emt 0:00:06]} g5 {[%emt 0:00:37]} 1/2-1/2